{"text_format":"3","workbook":"xlsx","n_sheets":1,"sheets":["Sheet1"],"not_rendered":{"images":5,"defined_names":2},"read":"whole","date_system":"1900"}

{"sheet":"Sheet1","index":0,"n_rows":35,"n_cols":10,"rows_kept":35,"merged":[[0,0,0,9],[1,0,3,0],[1,1,3,1],[1,2,3,2],[1,3,3,3],[1,4,3,4],[1,5,1,9],[2,5,3,5],[2,6,3,6],[2,7,3,7],[2,8,3,8],[2,9,3,9],[4,1,4,2],[17,1,17,2],[23,1,23,2],[28,1,28,2],[33,0,33,5],[34,0,34,9]]}
["2024年“A”项目蜂巢生态护坡工程清单报价表"]
["序号","项目名称","项目特征","单位","工程量","金额（元）",{"$nulls":3},""]
[{"$nulls":5},"全费用单价限价","合价","班组所报单价","合价","备注"]
[]
["一","蜂巢格室生态护坡"]
[1,"挖运土石方","1.完成项目范围内边坡土石方开挖、转运，工作内容包括但不限于以下工程内容：（1）土石方开挖、石方破碎大改小、土石方转运（含红线范围内取土回填转运，运距综合考虑）\n2.开挖深度：开挖标高应满足设计要求，误差控制在设计标高±5cm内。\n3.开挖方式、场内运输方式：投标人自行确定。\n4.开挖方案和边坡施工防护及对管线、构筑物、建筑物等采取的保护措施须经业主批准，满足安全、文明施工相关规范及规定，包含在投标报价中。\n5.其他：临边及孔洞的防护、进出车辆冲洗管理、场内外路面清洗管理、投标单位自己操作人员的劳保防护用品、临时用水用电（含水电费用）、必要安全措施等由投标单位承担；现场出现超挖和欠挖现象，造成的损失由投标单位承担；施工内容的检测（复检）费用和送样检测等费用由投标单位承担；机械进、出场费用（含多次进出场）由投标单位综合考虑，包含在投标报价中。                                                    \n6.其余要求：施工过程中应满足城管和环保要求。为保证施工工期并达到环保要求，夜间施工产生的措施费及赶工费等费用包含在综合单价中。\n12.工程量以现场收方为准","m³",1000,18,{"$f":"E6*F6","v":{"v":18000,"d":"18000.00"}}]
[2,"岩质边坡护坡锚杆(成孔灌浆)","1.地层情况：各类土、岩质综合，施工时结合现场实际地层条件调整作业； \n2.钻孔深度：按设计要求，分别为800mm、1000mm，满足规范及边坡稳定要求；\n3.钻孔直径及长度：钻孔直径Φ50mm，单根灌浆长度分别为500mm、800mm，按实际施工长度计量；\n4.浆液种类、强度等级：采用M30水泥砂浆，浆液配比、搅拌质量符合设计及现行规范要求；              \n5、工作内容：包含钻孔、砂浆搅拌、灌浆、注浆体养护、现场清理及安全防护等全部工作内容；         \n6.未尽事宜均严格满足设计图纸要求及现行国家、行业相关技术、质量验收规范。\n","m",3600,62,{"$f":"E7*F7","v":{"v":223200,"d":"223200.00"}}]
[3,"14mm—16mm锚杆","1.直径： φ14mm、 φ16mm锚杆钢筋（甲供）\n2.长度：φ14mm长度为800mm，φ16mm锚杆钢筋为1200mm\n3.工作内容 ：负责甲供钢筋的场内转运、制作、绑扎、安装及成品保护；含孔口定位、连接锚固、安全防护等全部工序。\n4.未尽事宜满足设计及现行技术、质量验收规范要求","t",4.8,1200,{"$f":"E8*F8","v":{"v":5760,"d":"5760.00"}}]
[4,"土、石质边坡蜂窝格室","1.材料品种、规格：1. 材料品种、规格：采用20cm厚绿色HDPE蜂巢格室、塑料排水板，材料质量、规格参数符合设计及现行行业标准要求；\n2.部位：用于本项目挖方区、填方区坡面防护施工，贴合坡面实际工况实施；\n3.综合单价已涵盖20cm绿色HDPE蜂巢格室、塑料排水板的采购、场内转运、铺设、固定、搭接、锚固、成品保护及护坡结构相关的全部施工费用；\n4.未尽事宜均严格满足设计图纸要求及现行国家、行业相关技术、质量验收规范","m2",4500,40,{"$f":"E9*F9","v":{"v":180000,"d":"180000.00"}}]
[5,"营养土回填","1.回填土质要求：采用营养土（营养土为甲供材料）\n2.取土运距 ：甲方将营养土送货至施工大门处，承包人负责营养土的场内转运、按设计要求回填；\n3.回填厚度 ：10cm\n4.保护及防护措施：对管线、构筑物、建筑物等的保护措施，边坡施工防护及变形观测措施，均由投标人自行确定，相关费用全部包含在投标报价中，不另行计取\n5.未尽事宜均严格满足设计图纸要求及现行国家、行业相关技术、质量验收规范","m3",400,25,{"$f":"E10*F10","v":{"v":10000,"d":"10000.00"}}]
[6,"种植土回填","1.回填土质要求：采用种植土，材料由承包人自行采购供应（乙供）\n2.取土运距 ：土源、取运方式及运距均由投标人自行综合考虑；\n3.回填厚度 ：按设计要求回填厚度 30cm；                                   4.工作内容：包括但不限于回填种植土、边坡整理、清除杂草、树根及建筑垃圾，场地平整，综合考虑坡度、标高控制，满足施工及边坡放线要求；\n5.保护及防护措施：施工期间对现有管线、构筑物、建筑物的保护措施，边坡施工防护及变形观测措施均由投标人自行确定，相关费用含在投标报价中；\n6.其他要求：未尽事宜均满足设计图纸及现行国家、行业技术、质量验收规范要求。","m3",660,30,{"v":19800,"d":"19800.00"}]
[7,"回填陶粒","1.填方材料品种：陶粒\n2.密实度、粒径：5cm厚φ20~30陶粒，满足设计及规范要求\n3.回填部位：详设计\n4.回填方式:投标人自行考虑\n5.对管线、构筑物、建筑物等采取的保护措施，边坡施工防护及变形观测措施：由投标人自行确定，包含在投标报价中\n6.其他要求：未尽事宜均满足设计图纸及现行国家、行业技术、质量验收规范要求。","m3",{"v":29,"d":"29.00"},250,{"v":7250,"d":"7250.00"}]
[8,"土工布 250g/m2","1.材料品种、规格：250g/m2 土工布 \n2.搭接方式：满足设计与规范要求                         3、施工内容：包含但不仅限于清除边坡坡面浮土、浮石、杂草、树根、尖锐石块及杂物，对坡面进行修整、拍实、找平，确保坡面平顺、稳定、无尖锐突出物，铺装土工布时避免刺破土工布，边坡坡度、平整度符合设计及规范要求\n4.其他要求：未尽事宜均满足设计图纸及现行国家、行业技术、质量验收规范要求。","m2",550,5,{"v":2750,"d":"2750.00"}]
[9,"MU20烧结页岩砖","1.材料：MU20烧结页岩砖\n2.砂浆规格：M10水泥砂浆\n3.部位：路堑护坡范围内所有砖砌体\n4.其他要求：未尽事宜均满足设计图纸及现行国家、行业技术、质量验收规范要求。","m3",87,620,{"v":53940,"d":"53940.00"}]
[10,"M10水泥砂浆抹面","1.墙体类型:砖 \n2.面层厚度、砂浆配合比：2cm厚M10水泥砂浆抹面 \n3.部位：路堑护坡范围内砖砌体抹面\n4.其他要求：未尽事宜均满足设计图纸及现行国家、行业技术、质量验收规范要求。","m2",350,28,{"v":9800,"d":"9800.00"}]
[11,"DN50mmPVC排水管","1.材料品种：PVC排水管\n2.管径：DN50\n3.间距：2m\n4.部位：护坡范围内\n5.其他要求：未尽事宜均满足设计图纸及现行国家、行业技术、质量验收规范要求。","m",10,17,{"v":170,"d":"170.00"}]
[12,"喷薄草籽（草籽甲供）","1、草籽种类：综合（草籽甲供）                         2、工作内容：包含但不仅限于基材混合搅拌、液压喷播、覆盖无纺布、洒水养护等工作内容\n3、养护期：自竣工验收合格之日起1年，按一级养护质量标准养护，竣工验收前养护费已包含在综合单价中，投标人在投标报价时需综合考虑\n4.其他要求：未尽事宜均满足设计图纸及现行国家、行业技术、质量验收规范要求。","㎡",4500,7,{"v":31500,"d":"31500.00"}]
["二","截水沟"]
[1,"挖运沟槽土（石）方","1.土石类别：土石综合 \n2.挖土石深度：综合\n3.开挖方式：投标人自行综合考虑\n4.场内外运距、弃土场费用：投标人自行考虑\n5.对管线、构筑物、建筑物等采取的保护措施，边坡施工防护及变形观测措施：由投标人自行确定，包含在投标报价中\n6.其他要求：未尽事宜均满足设计图纸及现行国家、行业技术、质量验收规范要求。","m3",{"$f":"1056.46/2","v":528.23},18,{"$f":"E19*F19","v":9508.14}]
[2,"永久截水沟（用于永久挖方边坡）","1.断面尺寸 ：详设计\n2.材料品种、规格：Mu30片石，外漏面砂浆抹面，抹面厚度3cm \n3.砂浆强度等级：M7.5 \n4.其他要求：未尽事宜均满足设计图纸及现行国家、行业技术、质量验收规范要求。","m",300,303,{"$f":"E20*F20","v":{"v":90900,"d":"90900.00"}}]
[3,"永久排水沟（用于永久填方边坡）","1.断面尺寸 ：详设计\n2.材料品种、规格：Mu30片石，外漏面砂浆抹面，抹面厚度3cm \n3.砂浆强度等级：M7.5 \n4.其他要求：未尽事宜均满足设计图纸及现行国家、行业技术、质量验收规范要求。","m",35,338,{"$f":"E21*F21","v":{"v":11830,"d":"11830.00"}}]
[4,"临时截水沟（用于挖方临时边坡）","1.断面尺寸 ：详设计\n2.材料品种、规格：3cm厚M7.5预拌砂浆\n3.其他要求：未尽事宜均满足设计图纸及现行国家、行业技术、质量验收规范要求。","m",32,45,{"$f":"E22*F22","v":{"v":1440,"d":"1440.00"}}]
[5,"临时排水沟（用于填方临时边坡）","1.断面尺寸 ：详设计\n2.材料品种、规格：3cm厚M7.5预拌砂浆\n3.其他要求：未尽事宜均满足设计图纸及现行国家、行业技术、质量验收规范要求。","m",99,51,{"$f":"E23*F23","v":{"v":5049,"d":"5049.00"}}]
["三","人行道",{"$nulls":4},{"$f":"E24*F24","v":{"v":0,"d":"0.00"}}]
[1,"30cm回填块片石","1.石料规格 ：片石\n2.回填厚度：300mm\n3.其他要求：未尽事宜均满足设计图纸及现行国家、行业技术、质量验收规范要求。\n","m3",45,145,{"v":6525,"d":"6525.00"}]
[2,"5cm厚C20混凝土垫层","1.混凝土种类 ：现浇混凝土（混凝土甲供）\n2.混凝土强度等级：C20\n3.模板及浇筑方式：综合单价包含模板、混凝土浇筑、振捣、养护等全流程施工方式，均由投标人结合现场工况、进度要求自行综合考虑，包含在综合单价内，不再单独计价；\n4.其他要求：未尽事宜均满足设计图纸及现行国家、行业技术、质量验收规范要求。","m3",{"$f":"50*3*0.05","v":7.5},120,{"v":900,"d":"900.00"}]
[3,"青石台阶 （含平台）1000×500×150mm","1.台阶面层规格：青石 1000×500×150mm 表面细钻(青石甲供)\n2.结合层厚度砂浆等级：综合考虑  4、工作内容：甲方负责将材料运输到工地大门处，综合单价已包含场内转运及铺装等工作内容\n3.计算规则：按投影面积计算工程量                      4.其他要求：未尽事宜均满足设计图纸及现行国家、行业技术、质量验收规范要求。","㎡",150,100,{"v":15000,"d":"15000.00"}]
[4,"预埋铁件","1.材料种类：钢板、钢筋、螺栓等预埋件综合考虑（甲供）\n2.材料规格：详见设计施工图\n3.负责甲供铁件的场内转运、制作、绑扎、安装及成品保护；含孔口定位、连接锚固、安全防护等全部工序。\n4.其他要求：未尽事宜均满足设计图纸及现行国家、行业技术、质量验收规范要求。","t",0.5,1200,{"v":600,"d":"600.00"}]
["四","护坡排水",{"$nulls":4},{"v":0,"d":"0.00"}]
[1,"急流槽 C30","1.断面尺寸 ：500×500mm\n2.材料品种、厚度：C30混凝土 （混凝土甲供）\n3.沉降缝做法：隔1.75m设一道沉降缝,在地质条件发生变化的地方应加设沉降缝,沉降缝缝宽20~30毫米。沉降缝在阶梯跌水构筑物基础用沥青木板嵌填,阶梯跌水构筑物侧墙外侧5cm以热沥青浸麻丝填塞,内侧以1:3水泥砂浆填塞15cm,中间嵌沥青木板。\n4.具体做法详见设计施工图\n5.混凝土运输及浇筑方式：混凝土浇筑、振捣、养护等全流程施工方式，均由投标人结合现场工况、进度要求自行综合考虑，包含在综合单价内，不再单独计价；\n6.其他要求：未尽事宜均满足设计图纸及现行国家、行业技术、质量验收规范要求。","m3",{"$f":"38.7/2","v":19.35},65,1257.75]
[2,"明渠 C30  ","1.断面尺寸 ：400×400mm（混凝土甲供）\n2.材料品种、厚度：C30混凝土 \n3.混凝土运输及浇筑方式：混凝土浇筑、振捣、养护等全流程施工方式，均由投标人结合现场工况、进度要求自行综合考虑，包含在综合单价内，不再单独计价；\n4.其他要求：未尽事宜均满足设计图纸及现行国家、行业技术、质量验收规范要求。\n","m3",{"$f":"31.85/2","v":15.925},65,{"v":1035.125,"d":"1035.13"}]
[3,"急流槽模板","1.支模高度：综合\n2.模板及支架材料:由投标人根据设计文件结合自身的技术能力综合考虑\n3.本项目投标人应根据施工经验，现场实际情况和企业自身情况综合报价\n4.其他要求：未尽事宜均满足设计图纸及现行国家、行业技术、质量验收规范要求。","㎡",{"$f":"213.2/2","v":106.6},70,{"v":7462,"d":"7462.00"}]
[4,"明渠模板","1.支模高度：综合\n2.模板及支架材料:由投标人根据设计文件结合自身的技术能力综合考虑\n3.本项目投标人应根据施工经验，现场实际情况和企业自身情况综合报价\n4.其他要求：未尽事宜均满足设计图纸及现行国家、行业技术、质量验收规范要求。","㎡",{"$f":"88.98/2","v":44.49},70,{"v":3114.3,"d":"3114.30"}]
["合计",{"$nulls":5},{"$f":"SUM(G5:G33)","v":{"v":716791.315,"d":"716791.32"}},null,{"$f":"SUM(I5:I33)","v":{"v":0,"d":"0.00"}}]
["注：1、全费用综合单价，包括人工费、材料费、机械费、管理费、利润、除安全文明施工费外的总价措施费、大型机械进出场费及进出场外的其他单价措施费、降排水费、规费、销项增值税和附加税等费用；以上工程量均为暂估量，最终以实际施工工程量结算且合同单价均不予以调整。\n2.现场安全环保文明施工管理要求：（1）由公司统一发放印有“兴绿园林”字样和LOGO的安全帽和反光背心，班组按实名制领取，使用完后交回项目部，否则按采购费用扣款，其余参照合同附件中安全环保管理协议执行。（2）现场雾炮机由甲方提供，投标单位需安排人员管理使用，人工费、水费、油费及管理费用综合考虑到投标报价中，不单独计取。（3）防尘网由甲方提供，投标单位安排人员进行覆盖、回收、现场转移等，人工费综合考虑到投标报价中，不单独计取。                                                                                                                                                 3.现场施工的环保设施设备、对于临边及孔洞的防护、进出车辆进行冲洗管理、投标单位自己操作人员的劳保防护用品、临时用水用电（水电接口由甲方提供至红线内，水电费用投标人自行考虑，若水电未及时安装需由承包商用水车供水以满足土石方施工环保降尘要求）、必要安全措施等由投标单位承担；施工内容的检测（复检）检测费用和送样检测等费用由投标单位承担；机械进、出场费用由投标单位综合考虑，包含在投标报价中。\n4.工程涉及到的专项施工方案的编制及专家论证由投标人负责。"]